[Event "EYCC Open-U10 2019"]
[Site "Bratislava"]
[Date "2019.08.10"]
[Round "9.5"]
[White "Navoyan, Gagik"]
[Black "Kononenko, Vladimir"]
[Result "1-0"]
[ECO "A40"]
[WhiteElo "1670"]
[BlackElo "1667"]
[Annotator "NA"]
[PlyCount "119"]
[EventDate "2019.08.02"]
[EventType "swiss"]
[EventCountry "SVK"]
[SourceTitle "playchess.com"]
[Source "ChessBase"]
[SourceQuality "1"]
[TimeControl "40/5400+30:1800+30"]

1. d4 {[%emt 0:00:00]} e6 {[%emt 0:00:00]} 2. Nf3 {[%emt 0:00:00]} Nf6 {[%emt 0:00:00]} 3. g3 {[%emt 0:00:00]} d5 {[%emt 0:00:00]} 4. Bg2 {[%emt 0:00:05]} c5 {[%emt 0:00:20]} 5. c4 {[%emt 0:01:13]} dxc4 {[%emt 0:00:09]} 6. O-O {[%emt 0:00:09]} Nc6 {[%emt 0:00:04]} 7. dxc5 {[%emt 0:00:26]} Qxd1 {[%emt 0:00:10]} 8. Rxd1 {[%emt 0:00:04]} Bxc5 {[%emt 0:00:06]} 9. Nbd2 {[%emt 0:00:05]} c3 {[%emt 0:00:29]} 10. bxc3 {[%emt 0:00:43]} Bd7 {[%emt 0:01:10]} 11. Nb3 {[%emt 0:02:16]} Bb6 {[%emt 0:02:36]} 12. Bb2 {[%emt 0:05:41]} O-O-O {[%emt 0:02:01]} 13. Nfd4 {[%emt 0:01:25]} a6 {[%emt 0:03:21]} 14. c4 {[%emt 0:00:55]} Nxd4 {[%emt 0:03:18]} 15. Bxd4 {[%emt 0:02:10]} Bxd4 {[%emt 0:03:15]} 16. Rxd4 {[%emt 0:00:15]} e5 {[%emt 0:01:54]} 17. Rdd1 {[%emt 0:03:18]} e4 {[%emt 0:05:27]} 18. Rd4 {[%emt 0:04:47]} Bc6 {[%emt 0:00:30]} 19. e3 {[%emt 0:00:41]} Rhe8 {[%emt 0:12:45]} 20. Rad1 {[%emt 0:00:14]} Nd7 {[%emt 0:02:51]} 21. Bh3 {[%emt 0:02:07]} Kc7 {[%emt 0:00:47]} 22. Bxd7 {[%emt 0:03:38]} Bxd7 {[%emt 0:04:06]} 23. Rc1 {[%emt 0:02:47]} Bc6 {[%emt 0:05:33]} 24. Kf1 {[%emt 0:02:11]} Rd7 {[%emt 0:04:08]} 25. Ke2 {[%emt 0:00:35]} Red8 {[%emt 0:01:03]} 26. Rcd1 {[%emt 0:00:22]} b6 {[%emt 0:03:26]} 27. Kd2 {[%emt 0:02:08]} b5 {[%emt 0:03:52]} 28. c5 {[%emt 0:06:36]} a5 {[%emt 0:01:07]} 29. Kc3 {[%emt 0:01:20]} a4 {[%emt 0:10:28]} 30. Rxd7+ {[%emt 0:03:29]} Bxd7 {[%emt 0:04:10]} 31. Nd4 {[%emt 0:00:16]} b4+ {[%emt 0:02:57]} 32. Kxb4 {[%emt 0:00:33]} Rb8+ {[%emt 0:00:32]} 33. Ka3 {[%emt 0:00:12]} g6 {[%emt 0:03:21]} 34. Rc1 {[%emt 0:01:25]} Bc6 {[%emt 0:01:00]} 35. Nxc6 {[%emt 0:03:06]} Kxc6 {[%emt 0:00:02]} 36. Rc2 {[%emt 0:00:12]} f5 {[%emt 0:02:27]} 37. Kxa4 {[%emt 0:03:06]} Rb7 {[%emt 0:00:19]} 38. a3 {[%emt 0:01:56]} Rb1 {[%emt 0:02:25]} 39. h4 {[%emt 0:01:37]} Rb7 {[%emt 0:00:55]} 40. Ka5 {[%emt 0:00:00]} Rb5+ {[%emt 0:00:00]} 41. Ka4 {[%emt 0:08:18]} Rb7 {[%emt 0:04:48]} 42. Rd2 {[%emt 0:01:38]} Kxc5 {[%emt 0:00:43]} 43. Rc2+ {[%emt 0:00:07]} Kd5 {[%emt 0:00:19]} 44. Ka5 {[%emt 0:00:24]} h6 {[%emt 0:01:38]} 45. a4 {[%emt 0:00:23]} g5 {[%emt 0:03:19]} 46. h5 {[%emt 0:01:25]} Rb1 {[%emt 0:02:28]} 47. Ka6 {[%emt 0:00:04]} Rb8 {[%emt 0:01:12]} 48. a5 {[%emt 0:04:42]} f4 {[%emt 0:00:57]} 49. gxf4 {[%emt 0:01:55]} gxf4 {[%emt 0:00:01]} 50. exf4 {[%emt 0:00:01]} Kd4 {[%emt 0:00:08]} 51. Ka7 {[%emt 0:01:56]} Rb5 {[%emt 0:00:36]} 52. a6 {[%emt 0:00:59]} Kd3 {[%emt 0:00:14]} 53. Ra2 {[%emt 0:00:31]} Kd4 {[%emt 0:00:59]} 54. Ka8 {[%emt 0:03:48]} Kd5 {[%emt 0:01:07]} 55. Rc2 {[%emt 0:01:54]} Rb6 {[%emt 0:00:32]} 56. a7 {[%emt 0:00:14]} Ke6 {[%emt 0:00:02]} 57. Rc7 {[%emt 0:00:35]} Rb2 {[%emt 0:00:48]} 58. Rb7 {[%emt 0:04:07]} Rxf2 {[%emt 0:00:24]} 59. Kb8 {[%emt 0:00:01]} Rxf4 {[%emt 0:00:18]} 60. Rc7 {[%emt 0:00:47]} 1-0

[Event "EYCC Open-U10 2019"]
[Site "Bratislava"]
[Date "2019.08.10"]
[Round "9.6"]
[White "Royal, Shreyas"]
[Black "Warchol, Kamil"]
[Result "1/2-1/2"]
[ECO "D27"]
[WhiteElo "1996"]
[BlackElo "1573"]
[Annotator "NA"]
[PlyCount "103"]
[EventDate "2019.08.02"]
[EventType "swiss"]
[EventCountry "SVK"]
[SourceTitle "playchess.com"]
[Source "ChessBase"]
[SourceQuality "1"]
[TimeControl "40/5400+30:1800+30"]

1. d4 {[%emt 0:00:00]} d5 {[%emt 0:00:00]} 2. c4 {[%emt 0:00:19]} dxc4 {[%emt 0:00:33]} 3. Nf3 {[%emt 0:01:21]} Nf6 {[%emt 0:01:01]} 4. e3 {[%emt 0:00:38]} e6 {[%emt 0:00:43]} 5. Bxc4 {[%emt 0:00:59]} c5 {[%emt 0:00:18]} 6. O-O {[%emt 0:01:11]} a6 {[%emt 0:00:50]} 7. a4 {[%emt 0:00:20]} Nc6 {[%emt 0:00:57]} 8. Qe2 {[%emt 0:00:43]} cxd4 {[%emt 0:00:49]} 9. Rd1 {[%emt 0:00:07]} Be7 {[%emt 0:01:07]} 10. exd4 {[%emt 0:01:06]} O-O {[%emt 0:00:55]} 11. Nc3 {[%emt 0:00:40]} Nb4 {[%emt 0:00:34]} 12. Ne5 {[%emt 0:01:54]} Bd7 {[%emt 0:00:47]} 13. Bg5 {[%emt 0:02:39]} Bc6 {[%emt 0:28:32]} 14. Nxc6 {[%emt 0:00:49]} bxc6 {[%emt 0:02:24]} 15. a5 {[%emt 0:06:45]} Qc7 {[%emt 0:05:26]} 16. Na4 {[%emt 0:20:30]} Qxa5 {[%emt 0:09:45]} 17. Nc5 {[%emt 0:00:15]} Qc7 {[%emt 0:01:52]} 18. Nxa6 {[%emt 0:02:51]} Nxa6 {[%emt 0:00:51]} 19. Bxa6 {[%emt 0:00:37]} Nd5 {[%emt 0:04:30]} 20. Bxe7 {[%emt 0:01:20]} Qxe7 {[%emt 0:01:03]} 21. Rac1 {[%emt 0:06:52]} Qa7 {[%emt 0:04:15]} 22. Bd3 {[%emt 0:01:10]} Nf4 {[%emt 0:03:04]} 23. Qe4 {[%emt 0:04:19]} Nxd3 {[%emt 0:00:33]} 24. Qxd3 {[%emt 0:00:05]} Rfd8 {[%emt 0:01:19]} 25. Qc3 {[%emt 0:02:12]} Qb6 {[%emt 0:04:47]} 26. Qxc6 {[%emt 0:01:40]} Qxc6 {[%emt 0:00:26]} 27. Rxc6 {[%emt 0:00:19]} Rxd4 {[%emt 0:00:18]} 28. Rdc1 {[%emt 0:00:11]} Kf8 {[%emt 0:01:34]} 29. Kf1 {[%emt 0:00:17]} Rb4 {[%emt 0:01:07]} 30. Rc8+ {[%emt 0:00:21]} Rxc8 {[%emt 0:00:04]} 31. Rxc8+ {[%emt 0:00:07]} Ke7 {[%emt 0:00:01]} 32. Rc2 {[%emt 0:00:14]} Kd6 {[%emt 0:01:41]} 33. Ke2 {[%emt 0:00:18]} Rb3 {[%emt 0:00:18]} 34. Rd2+ {[%emt 0:00:28]} Kc6 {[%emt 0:04:11]} 35. Kd1 {[%emt 0:00:15]} Rb4 {[%emt 0:01:48]} 36. Kc2 {[%emt 0:00:19]} Rh4 {[%emt 0:02:12]} 37. h3 {[%emt 0:00:24]} g5 {[%emt 0:02:11]} 38. Kc3 {[%emt 0:00:47]} Kc5 {[%emt 0:01:08]} 39. Rd7 {[%emt 0:02:24]} Rf4 {[%emt 0:00:41]} 40. f3 {[%emt 0:00:00]} h5 {[%emt 0:00:00]} 41. Rc7+ {[%emt 0:02:01]} Kd5 {[%emt 0:05:26]} 42. Rd7+ {[%emt 0:00:23]} Kc5 {[%emt 0:00:14]} 43. Rc7+ {[%emt 0:00:06]} Kd5 {[%emt 0:00:23]} 44. b4 {[%emt 0:01:23]} g4 {[%emt 0:01:22]} 45. Rc5+ {[%emt 0:01:41]} Kd6 {[%emt 0:00:20]} 46. Rxh5 {[%emt 0:00:07]} gxf3 {[%emt 0:00:27]} 47. gxf3 {[%emt 0:00:06]} Rxf3+ {[%emt 0:00:12]} 48. Kc4 {[%emt 0:00:06]} e5 {[%emt 0:01:58]} 49. Rh6+ {[%emt 0:03:12]} f6 {[%emt 0:02:03]} 50. h4 {[%emt 0:00:18]} Rf4+ {[%emt 0:02:50]} 51. Kc3 {[%emt 0:00:00]} e4 {[%emt 0:03:57]} 52. Kd4 {[%emt 0:00:04] Ke5+ Kxe4+} 1/2-1/2

[Event "EYCC Open-U10 2019"]
[Site "Bratislava"]
[Date "2019.08.10"]
[Round "9.7"]
[White "Toktomushev, Teimur"]
[Black "Gusev, Mikhail"]
[Result "1-0"]
[ECO "A46"]
[WhiteElo "1977"]
[BlackElo "1575"]
[Annotator "NA"]
[PlyCount "73"]
[EventDate "2019.08.02"]
[EventType "swiss"]
[EventCountry "SVK"]
[SourceTitle "playchess.com"]
[Source "ChessBase"]
[SourceQuality "1"]
[TimeControl "40/5400+30:1800+30"]

1. d4 {[%emt 0:00:00]} Nf6 {[%emt 0:00:00]} 2. Nf3 {[%emt 0:00:00]} c5 {[%emt 0:00:00]} 3. c3 {[%emt 0:00:00]} d5 {[%emt 0:00:06]} 4. Bf4 {[%emt 0:00:47]} Nc6 {[%emt 0:00:45]} 5. e3 {[%emt 0:00:39]} Qb6 {[%emt 0:01:40]} 6. Qc1 {[%emt 0:06:05]} cxd4 {[%emt 0:00:59]} 7. exd4 {[%emt 0:00:15]} Bf5 {[%emt 0:00:35]} 8. Nh4 {[%emt 0:09:27]} Bg6 {[%emt 0:01:12]} 9. Nxg6 {[%emt 0:00:09]} hxg6 {[%emt 0:00:02]} 10. Nd2 {[%emt 0:01:45]} Rc8 {[%emt 0:01:04]} 11. Nf3 {[%emt 0:00:39]} Nh5 {[%emt 0:03:35]} 12. Bg5 {[%emt 0:04:44]} e6 {[%emt 0:03:48]} 13. Be2 {[%emt 0:02:10]} Bd6 {[%emt 0:00:57]} 14. Qd2 {[%emt 0:00:41]} Nf6 {[%emt 0:01:16]} 15. Bxf6 {[%emt 0:06:45]} gxf6 {[%emt 0:00:01]} 16. g3 {[%emt 0:03:29]} Kd7 {[%emt 0:02:09]} 17. Kf1 {[%emt 0:02:05]} Na5 {[%emt 0:01:19]} 18. Kg2 {[%emt 0:01:45]} Nc4 {[%emt 0:00:47]} 19. Bxc4 {[%emt 0:00:01]} Rxc4 {[%emt 0:00:00]} 20. h4 {[%emt 0:01:31]} Rcc8 {[%emt 0:02:29]} 21. Rhc1 {[%emt 0:04:22]} Qa5 {[%emt 0:01:54]} 22. Qd3 {[%emt 0:01:41]} Qb6 {[%emt 0:02:24]} 23. b3 {[%emt 0:01:40]} Ba3 {[%emt 0:04:38]} 24. Rc2 {[%emt 0:01:07]} a5 {[%emt 0:00:56]} 25. c4 {[%emt 0:02:39]} Qc6 {[%emt 0:00:32]} 26. Re1 {[%emt 0:06:04]} a4 {[%emt 0:03:45]} 27. Rb1 {[%emt 0:01:47]} Bf8 {[%emt 0:02:46]} 28. c5 {[%emt 0:01:13]} b6 {[%emt 0:01:24]} 29. Rbc1 {[%emt 0:09:42]} axb3 {[%emt 0:01:03]} 30. axb3 {[%emt 0:00:26]} Bh6 {[%emt 0:01:07]} 31. Ra1 {[%emt 0:01:27]} Ra8 {[%emt 0:03:32]} 32. Rca2 {[%emt 0:03:51]} Rxa2 {[%emt 0:01:36]} 33. Rxa2 {[%emt 0:00:52]} Rc8 {[%emt 0:00:21]} 34. Ra6 {[%emt 0:02:29]} Rb8 {[%emt 0:00:02]} 35. b4 {[%emt 0:00:43]} Qc7 {[%emt 0:01:56]} 36. Qb5+ {[%emt 0:00:20]} Qc6 {[%emt 0:00:01]} 37. Ra7+ {[%emt 0:00:08]} 1-0

[Event "EYCC Open-U10 2019"]
[Site "Bratislava"]
[Date "2019.08.10"]
[Round "9.8"]
[White "Samunenkov, Ihor"]
[Black "Agasarov, Benik"]
[Result "1-0"]
[ECO "A45"]
[WhiteElo "1985"]
[BlackElo "1697"]
[Annotator "NA"]
[PlyCount "71"]
[EventDate "2019.08.02"]
[EventType "swiss"]
[EventCountry "SVK"]
[SourceTitle "playchess.com"]
[Source "ChessBase"]
[SourceQuality "1"]
[TimeControl "40/5400+30:1800+30"]

1. d4 {[%emt 0:00:00]} Nf6 {[%emt 0:00:00]} 2. g3 {[%emt 0:00:00]} e6 {[%emt 0:02:11]} 3. Bg2 {[%emt 0:00:05]} c5 {[%emt 0:00:10]} 4. Nf3 {[%emt 0:00:20]} Nc6 {[%emt 0:00:10]} 5. O-O {[%emt 0:03:35]} d5 {[%emt 0:01:03]} 6. c4 {[%emt 0:01:48]} dxc4 {[%emt 0:03:18]} 7. Qa4 {[%emt 0:03:05]} Bd7 {[%emt 0:06:14]} 8. Qxc4 {[%emt 0:01:22]} b5 {[%emt 0:09:03]} 9. Qd3 c4 {[%emt 0:08:29]} 10. Qd1 {[%emt 0:09:28]} Be7 {[%emt 0:04:55]} 11. Ne5 {[%emt 0:15:18]} Rc8 {[%emt 0:00:46]} 12. e4 {[%emt 0:05:13]} O-O {[%emt 0:00:23]} 13. Be3 {[%emt 0:04:06]} a6 {[%emt 0:03:50]} 14. Qe2 {[%emt 0:01:24]} Nxe5 {[%emt 0:03:17]} 15. dxe5 {[%emt 0:00:18]} Ne8 {[%emt 0:00:06]} 16. Rc1 {[%emt 0:13:30]} Qc7 {[%emt 0:01:36]} 17. f4 {[%emt 0:00:34]} Bc5 {[%emt 0:00:06]} 18. Nd2 {[%emt 0:03:09]} Qb6 {[%emt 0:01:46]} 19. Bf2 {[%emt 0:07:43]} Bd4 {[%emt 0:09:47]} 20. Rc2 {[%emt 0:03:25]} f6 {[%emt 0:06:31]} 21. Nf3 {[%emt 0:02:46]} Bxf2+ {[%emt 0:01:14]} 22. Qxf2 {[%emt 0:00:23]} Qxf2+ {[%emt 0:00:08]} 23. Kxf2 {[%emt 0:00:40]} Bc6 {[%emt 0:00:11]} 24. Ke3 {[%emt 0:00:12]} Nc7 {[%emt 0:06:29]} 25. b3 {[%emt 0:02:51]} Bxe4 {[%emt 0:09:48]} 26. Kxe4 {[%emt 0:01:38]} f5+ {[%emt 0:00:12]} 27. Ke3 {[%emt 0:00:45]} Nd5+ {[%emt 0:00:07]} 28. Kf2 {[%emt 0:01:09]} Nb4 {[%emt 0:01:40]} 29. Rc3 {[%emt 0:02:09]} Nd5 {[%emt 0:00:09]} 30. Rcc1 {[%emt 0:00:43]} Nb4 {[%emt 0:00:08]} 31. bxc4 {[%emt 0:04:45]} Nd3+ {[%emt 0:00:23]} 32. Ke3 {[%emt 0:00:07]} Nxc1 {[%emt 0:00:07]} 33. Rxc1 {[%emt 0:00:05]} bxc4 {[%emt 0:00:03]} 34. Nd4 {[%emt 0:00:31]} Rfd8 {[%emt 0:00:08]} 35. Rc3 {[%emt 0:01:34]} Rd7 {[%emt 0:01:59]} 36. Bf1 {[%emt 0:02:09]} 1-0

[Event "EYCC Open-U10 2019"]
[Site "Bratislava"]
[Date "2019.08.10"]
[Round "9.9"]
[White "Simbelov, Roman T."]
[Black "Zienkiewicz, Jan"]
[Result "1-0"]
[ECO "B32"]
[WhiteElo "1560"]
[BlackElo "1804"]
[Annotator "NA"]
[PlyCount "91"]
[EventDate "2019.08.02"]
[EventType "swiss"]
[EventCountry "SVK"]
[SourceTitle "playchess.com"]
[Source "ChessBase"]
[SourceQuality "1"]
[TimeControl "40/5400+30:1800+30"]

1. e4 c5 2. Nf3 Nc6 3. d4 cxd4 4. Nxd4 e5 5. Nb5 d6 6. N1c3 a6 7. Na3 b5 8. Nd5 Nge7 9. c4 Nxd5 10. exd5 Nd4 11. cxb5 Be7 12. Be3 Nf5 13. Nc4 axb5 14. Bb6 Qd7 15. Na3 Ba6 16. Rc1 Rc8 17. Bxb5 Bxb5 18. Nxb5 O-O 19. a4 Bg5 20. Rc3 Ne7 21. O-O f5 22. Bc7 Rf6 23. Qb3 Ng6 24. Rc6 f4 25. Rxd6 Rxd6 26. Bxd6 Nh4 27. Bxe5 Qg4 28. d6+ Kh8 29. Qd5 f3 30. Bg3 Nxg2 31. Nd4 Nh4 32. Qe6 h5 33. Qxg4 hxg4 34. Ne6 Bf6 35. d7 Ra8 36. Rd1 Rxa4 37. Be5 Be7 38. Bxg7+ Kg8 39. Bf8 Bf6 40. Bh6 Nf5 41. Bg5 Bxg5 42. Nxg5 Kg7 43. d8=Q Kg6 44. Qe8+ Kxg5 45. Qxa4 Kh4 46. Qf4 1-0

[Event "EYCC Open-U10 2019"]
[Site "Bratislava"]
[Date "2019.08.10"]
[Round "9.10"]
[White "Villa Tornero, Alex"]
[Black "Ljepic, Andrej"]
[Result "0-1"]
[ECO "B23"]
[WhiteElo "1641"]
[BlackElo "1824"]
[Annotator "NA"]
[PlyCount "148"]
[EventDate "2019.08.02"]
[EventType "swiss"]
[EventCountry "SVK"]
[SourceTitle "playchess.com"]
[Source "ChessBase"]
[SourceQuality "1"]
[TimeControl "40/5400+30:1800+30"]

1. e4 {[%emt 0:01:47]} c5 {[%emt 0:00:00]} 2. Nc3 {[%emt 0:01:29]} Nc6 {[%emt 0:00:34]} 3. Nge2 {[%emt 0:01:15]} g6 {[%emt 0:01:38]} 4. g3 {[%emt 0:01:52]} Bg7 {[%emt 0:00:43]} 5. Bg2 {[%emt 0:00:54]} e6 {[%emt 0:01:18]} 6. O-O {[%emt 0:01:03]} Nge7 {[%emt 0:00:57]} 7. f4 {[%emt 0:01:31]} d6 {[%emt 0:02:44]} 8. a3 {[%emt 0:03:32]} Nd4 {[%emt 0:09:14]} 9. Kh1 {[%emt 0:01:36]} Nec6 {[%emt 0:05:49]} 10. Nxd4 {[%emt 0:01:30]} Nxd4 {[%emt 0:04:02]} 11. Ne2 {[%emt 0:02:49]} Nxe2 {[%emt 0:03:38]} 12. Qxe2 {[%emt 0:00:13]} O-O {[%emt 0:03:21]} 13. Rb1 {[%emt 0:02:05]} Qc7 {[%emt 0:03:43]} 14. c4 {[%emt 0:02:46]} Bd7 {[%emt 0:03:49]} 15. b3 {[%emt 0:01:34]} Rab8 {[%emt 0:06:56]} 16. d3 {[%emt 0:09:42]} b5 {[%emt 0:04:21]} 17. Qc2 {[%emt 0:02:56]} a5 {[%emt 0:07:51]} 18. Be3 {[%emt 0:06:32]} a4 {[%emt 0:04:18]} 19. cxb5 axb3 {[%emt 0:03:31]} 20. Rxb3 {[%emt 0:02:24]} Bxb5 {[%emt 0:01:14]} 21. Rbb1 {[%emt 0:00:38]} Qa5 {[%emt 0:07:36]} 22. Qb3 {[%emt 0:09:30]} Qa4 {[%emt 0:09:22]} 23. e5 {[%emt 0:02:18]} dxe5 {[%emt 0:06:49]} 24. Bxc5 {[%emt 0:00:28]} Rfd8 {[%emt 0:00:54]} 25. Be7 {[%emt 0:06:08]} Qxb3 {[%emt 0:03:49]} 26. Rxb3 {[%emt 0:00:10]} Rxd3 {[%emt 0:00:14]} 27. Rfb1 {[%emt 0:00:18]} Rxb3 {[%emt 0:00:18]} 28. Rxb3 {[%emt 0:00:17]} Re8 {[%emt 0:00:38]} 29. Bc5 {[%emt 0:03:31]} Bc4 {[%emt 0:00:51]} 30. Re3 {[%emt 0:01:54]} exf4 {[%emt 0:00:29]} 31. gxf4 {[%emt 0:00:16]} Rc8 {[%emt 0:00:51]} 32. Bb4 {[%emt 0:00:19]} Bd4 {[%emt 0:01:22]} 33. Re1 {[%emt 0:00:27]} Ba6 {[%emt 0:01:25]} 34. Rd1 {[%emt 0:00:20]} Be3 {[%emt 0:01:10]} 35. Be7 {[%emt 0:01:14]} Bxf4 {[%emt 0:00:40]} 36. Bf6 {[%emt 0:00:32]} Rc1 {[%emt 0:00:50]} 37. Rxc1 {[%emt 0:00:05]} Bxc1 {[%emt 0:00:04]} 38. a4 {[%emt 0:00:20]} Bd2 {[%emt 0:01:03]} 39. Bc6 {[%emt 0:00:13]} Ba5 {[%emt 0:00:40]} 40. Kg2 {[%emt 0:00:00]} Kf8 {[%emt 0:00:00]} 41. Kf3 {[%emt 0:00:32]} Bb4 {[%emt 0:04:41]} 42. Ke4 {[%emt 0:00:48]} Be7 {[%emt 0:00:40]} 43. Ke5 {[%emt 0:00:06]} h6 {[%emt 0:04:54]} 44. h4 {[%emt 0:00:19]} g5 {[%emt 0:05:45]} 45. hxg5 {[%emt 0:00:06]} hxg5 {[%emt 0:00:06]} 46. Bf3 {[%emt 0:00:47]} Bc4 {[%emt 0:04:18]} 47. a5 {[%emt 0:02:02]} Ba6 {[%emt 0:02:36]} 48. Bg4 {[%emt 0:02:31]} Ke8 {[%emt 0:03:33]} 49. Bh5 {[%emt 0:01:50]} Bb4 {[%emt 0:02:31]} 50. Bxg5 {[%emt 0:00:49]} Bxa5 {[%emt 0:00:14]} 51. Kd6 {[%emt 0:02:06]} Bb4+ {[%emt 0:00:44]} 52. Ke5 {[%emt 0:00:50]} Bd3 {[%emt 0:01:20]} 53. Kd4 {[%emt 0:05:31]} Bg6 {[%emt 0:00:49]} 54. Bxg6 {[%emt 0:00:22]} fxg6 {[%emt 0:00:08]} 55. Ke5 {[%emt 0:00:19]} Kf7 {[%emt 0:00:08]} 56. Kd4 {[%emt 0:00:11]} Be7 {[%emt 0:00:18]} 57. Bf4 {[%emt 0:00:15]} Bf6+ {[%emt 0:00:14]} 58. Ke4 {[%emt 0:00:04]} g5 {[%emt 0:00:19]} 59. Bd6 {[%emt 0:00:12]} Kg6 {[%emt 0:00:24]} 60. Kf3 {[%emt 0:00:46]} Kf5 {[%emt 0:00:15]} 61. Ba3 {[%emt 0:01:11]} g4+ {[%emt 0:00:16]} 62. Kg3 {[%emt 0:00:17]} Be5+ {[%emt 0:00:21]} 63. Kf2 {[%emt 0:00:10]} Bf4 {[%emt 0:00:26]} 64. Bb2 {[%emt 0:00:15]} e5 {[%emt 0:00:22]} 65. Ke2 {[%emt 0:00:18]} g3 {[%emt 0:00:55]} 66. Kf3 {[%emt 0:00:30]} e4+ {[%emt 0:00:13]} 67. Ke2 {[%emt 0:00:21]} Kg4 {[%emt 0:00:22]} 68. Bd4 {[%emt 0:01:03]} Kh3 {[%emt 0:00:29]} 69. Bf2 {[%emt 0:00:25]} gxf2 {[%emt 0:00:32]} 70. Kxf2 {[%emt 0:00:06]} Kh2 {[%emt 0:00:27]} 71. Kf1 {[%emt 0:00:05]} e3 {[%emt 0:00:17]} 72. Ke2 {[%emt 0:00:05]} Kg2 {[%emt 0:00:08]} 73. Ke1 {[%emt 0:00:05]} Kf3 {[%emt 0:00:09]} 74. Kf1 {[%emt 0:00:00]} Bg3 {[%emt 0:00:00]} 0-1

[Event "EYCC Open-U10 2019"]
[Site "Bratislava"]
[Date "2019.08.10"]
[Round "9.11"]
[White "Sapocinic, Semion"]
[Black "Asikainen, Eeli"]
[Result "1-0"]
[ECO "C77"]
[WhiteElo "1781"]
[BlackElo "1447"]
[Annotator "NA RC"]
[PlyCount "109"]
[EventDate "2019.08.02"]
[EventType "swiss"]
[EventCountry "SVK"]
[SourceTitle "playchess.com"]
[Source "ChessBase"]
[SourceQuality "1"]
[TimeControl "40/5400+30:1800+30"]

1. e4 {[%emt 0:00:00]} e5 {[%emt 0:00:00]} 2. Nf3 {[%emt 0:00:00]} Nc6 {[%emt 0:00:00]} 3. Bb5 {[%emt 0:00:02]} a6 {[%emt 0:00:00]} 4. Ba4 {[%emt 0:00:05]} Nf6 {[%emt 0:00:08]} 5. d3 {[%emt 0:00:15]} b5 {[%emt 0:00:22]} 6. Bb3 {[%emt 0:00:09]} Bc5 {[%emt 0:00:14]} 7. O-O {[%emt 0:00:12]} d6 {[%emt 0:00:09]} 8. c3 {[%emt 0:00:11]} h6 {[%emt 0:00:23]} 9. Nbd2 {[%emt 0:00:21]} Bb6 {[%emt 0:00:32]} 10. Re1 {[%emt 0:01:07]} O-O {[%emt 0:01:00]} 11. Nf1 {[%emt 0:01:55]} Ne7 {[%emt 0:00:37]} 12. a4 {[%emt 0:01:21]} Bb7 {[%emt 0:01:27]} 13. Be3 {[%emt 0:02:18]} c5 {[%emt 0:00:44]} 14. h3 {[%emt 0:01:52]} Ng6 {[%emt 0:01:36]} 15. Ng3 {[%emt 0:05:16]} d5 {[%emt 0:05:46]} 16. Bc2 {[%emt 0:11:20]} Re8 {[%emt 0:02:22]} 17. Qe2 {[%emt 0:35:24]} Rc8 {[%emt 0:05:55]} 18. Nf5 {[%emt 0:12:32]} Kh7 {[%emt 0:01:27]} 19. Rad1 {[%emt 0:06:04]} d4 {[%emt 0:03:03]} 20. Bd2 {[%emt 0:00:52]} c4 {[%emt 0:05:45]} 21. dxc4 {[%emt 0:02:20]} bxc4 {[%emt 0:00:13]} 22. cxd4 {[%emt 0:00:47]} exd4 {[%emt 0:00:32]} 23. N3xd4 {[%emt 0:02:37]} Bxe4 {[%emt 0:02:27]} 24. Be3 {[%emt 0:01:53]} Bd5 {[%emt 0:04:45]} 25. Nf3 {[%emt 0:02:58]} Qc7 {[%emt 0:02:52]} 26. N3h4 {[%emt 0:05:23]} Ba5 {[%emt 0:03:38]} 27. Rf1 {[%emt 0:02:23]} Nf4 {[%emt 0:00:41]} 28. Bxf4 {[%emt 0:00:21]} Rxe2 {[%emt 0:02:58]} 29. Bxc7 {[%emt 0:00:10]} Rxc7 {[%emt 0:01:12]} 30. Nd4+ {[%emt 0:00:37]} Rxc2 {[%emt 0:00:59]} 31. Nxc2 {[%emt 0:00:09]} Be4 {[%emt 0:00:19]} 32. Rc1 {[%emt 0:01:46]} Bd2 {[%emt 0:01:01]} 33. Ne3 {[%emt 0:00:23]} Bd3 {[%emt 0:02:49]} 34. Rfd1 {[%emt 0:00:31]} Bxc1 {[%emt 0:02:14]} 35. Rxc1 {[%emt 0:00:07]} Ne4 {[%emt 0:00:31]} 36. Nf3 {[%emt 0:01:08]} Nc5 {[%emt 0:02:23]} 37. Ne1 {[%emt 0:02:40]} Kg6 {[%emt 0:03:24]} 38. Nxd3 {[%emt 0:00:43]} cxd3 {[%emt 0:00:42]} 39. b4 {[%emt 0:00:34]} Ne6 {[%emt 0:01:29]} 40. Rxc7 {[%emt 0:00:00]} Nxc7 {[%emt 0:00:00]} 41. Kf1 {[%emt 0:02:20]} Kf6 {[%emt 0:00:22]} 42. f4 {[%emt 0:01:37]} Ne6 {[%emt 0:00:45]} 43. g3 {[%emt 0:02:56]} Nd4 {[%emt 0:01:17]} 44. Ke1 {[%emt 0:01:04]} Nb3 {[%emt 0:00:59]} 45. a5 {[%emt 0:03:03]} Nd4 {[%emt 0:02:20]} 46. Kd2 {[%emt 0:00:45]} Ke6 {[%emt 0:00:11]} 47. Kxd3 {[%emt 0:00:29]} Nb5 {[%emt 0:00:11]} 48. Kc4 {[%emt 0:00:30]} g6 {[%emt 0:00:30]} 49. Kc5 {[%emt 0:00:50]} Kd7 {[%emt 0:00:28]} 50. Kb6 {[%emt 0:00:20]} Nc7 {[%emt 0:00:09]} 51. Ng4 {[%emt 0:01:31]} h5 {[%emt 0:00:21]} 52. Ne5+ {[%emt 0:00:09]} Kd6 {[%emt 0:00:30]} 53. Nxf7+ {[%emt 0:00:18]} Kd7 {[%emt 0:00:04]} 54. Ne5+ {[%emt 0:02:02]} Kd6 {[%emt 0:00:29]} 55. Nxg6 {[%emt 0:00:30]} 1-0